bitfinex/quotes_ETHUSD_20250518
["timestamp","ask_amount","ask_price","bid_price","bid_amount"]
[1747606653976,4.19675181,2382.8,2382.3,15.61058141]
[1747606654199,4.19706985,2382.7,2382.3,10.843]
[1747606654500,4.19628865,2383.1,2382.3,10.843]
[1747606654700,4.19628865,2383.1,2382.2,10.843]
[1747606654701,4.19698014,2382.7,2382.2,10.843]
[1747606655001,4.19762414,2382.3,2382.1,10.843]
[1747606655401,4.19762414,2382.3,2381.5,18.672]
[1747606655402,4.19887525,2381.6,2381.0,10.843]
[1747606655632,10.817,2381.8,2381.0,15.04281739]
[1747606655768,4.19922156,2381.4,2381.0,10.843]
[1747606656913,4.19922156,2381.4,2381.1,10.845]
[1747606657511,0.31364945,2381.6,2380.6,1.6518]
[1747606657699,4.19968005,2381.2,2380.7,10.845]
[1747606658013,4.20027416,2380.8,2380.5,18.122]
[1747606658209,4.20027416,2380.8,2380.7,10.845]
[1747606658611,10.815,2380.8,2380.3,10.845]
[1747606658903,10.814,2380.8,2380.3,10.845]
[1747606659111,4.19973961,2381.1,2380.4,1.6309]
[1747606659296,1.626,2381.2,2380.4,4.20080397]
[1747606659508,10.814,2381.1,2380.3,10.845]
[1747606659713,4.20019929,2380.9,2380.4,10.847]
[1747606660225,0.3141842,2381.0,2379.9,18.124]
[1747606660398,10.815,2381.0,2380.3,10.847]
[1747606660599,10.815,2381.0,2380.5,4.20078132]
[1747606660798,4.20020569,2380.9,2380.3,10.847]
[1747606661005,15.01500099,2381.0,2380.4,4.20096392]
[1747606661199,10.815,2381.0,2380.6,4.20051787]
[1747606661402,10.815,2381.0,2380.4,1.50479639]
[1747606661604,4.20033723,2380.8,2380.7,10.847]
[1747606661818,4.20133351,2380.2,2380.0,1.6211]
[1747606662032,4.20121707,2380.3,2380.1,10.848]
[1747606662325,4.20132761,2380.2,2380.1,10.848]
[1747606662534,4.20168067,2380.0,2379.9,18.124]
[1747606662717,15.01480032,2380.0,2379.1,18.13]
[1747606662914,4.20219846,2379.8,2379.1,18.13]
[1747606663137,10.813,2379.7,2379.1,18.13]
[1747606663616,10.813,2379.7,2379.1,22.33322992]
[1747606663815,10.812,2380.0,2379.2,6.43627401]
[1747606663989,5.81075167,2380.1,2379.2,2.23332299]
[1747606664190,1.6001,2380.4,2379.3,1.5621]
[1747606664389,1.6001,2380.4,2379.2,2.23332299]
[1747606664633,1.6001,2380.4,2379.3,11.398]
[1747606664935,4.2014254,2380.2,2379.5,4.20256356]
[1747606665138,4.20153914,2380.1,2379.6,4.20227967]
[1747606665345,4.25397024,2380.2,2379.5,0.55]
[1747606665522,4.20123547,2380.3,2379.5,0.55]
[1747606665691,4.2013599,2380.2,2379.7,4.20212]
[1747606666027,4.20215235,2379.8,2379.2,4.20300408]
[1747606666214,2.08124423,2380.2,2379.4,10.851]
[1747606666405,4.20255781,2379.6,2379.4,10.851]
[1747606666601,4.20256356,2379.5,2379.4,10.851]
[1747606666801,4.20267582,2379.5,2379.1,18.13]
[1747606667015,4.20282963,2379.4,2379.1,18.13]
[1747606667236,10.811,2379.7,2379.1,25.22730042]
[1747606667237,4.20232587,2379.7,2379.1,25.22730042]
[1747606667437,4.20229917,2379.7,2379.1,18.13]
[1747606667629,12.469,2379.8,2379.3,4.20280716]
[1747606667828,4.20205982,2379.8,2379.2,4.20298977]
[1747606668007,4.20205982,2379.8,2379.1,22.33323186]
[1747606668008,4.20170398,2380.0,2379.3,1.5641]
[1747606668337,1.10865837,2380.0,2379.3,1.5641]
[1747606668541,8.0,2380.7,2379.4,0.55]
[1747606668743,10.81,2380.5,2379.3,1.5641]
[1747606668923,4.20204081,2379.8,2379.4,10.814]
[1747606669117,4.20204081,2379.8,2378.9,1.6363]
[1747606669118,12.3627,2379.8,2378.9,1.6363]
[1747606669439,4.20276408,2379.4,2378.9,6.73566062]
[1747606669740,4.20276408,2379.4,2378.9,1.6363]
[1747606669945,4.20276408,2379.4,2378.8,15.01771807]
[1747606669946,10.811,2379.3,2378.5,1.5515]
[1747606670239,4.20381079,2378.8,2378.6,10.814]
[1747606670438,4.20327014,2379.1,2378.6,10.814]
[1747606670653,4.203565,2379.0,2378.6,10.814]
[1747606670944,4.20351633,2379.0,2378.6,10.814]
[1747606671240,1.664,2378.8,2378.4,19.14798062]
[1747606671444,5.86738759,2379.1,2378.5,15.0202479]
[1747606671644,1.5293,2379.5,2378.6,1.5859]
[1747606671823,4.20328932,2379.1,2378.6,1.5859]
[1747606672030,4.2038012,2378.8,2378.7,10.816]
[1747606672234,4.2038012,2378.8,2378.1,10.811]
[1747606672235,4.20468401,2378.3,2376.6,1.42029522]
[1747606672486,1.5293,2377.1,2376.6,1.42029522]
[1747606672656,12.3403,2377.1,2376.6,1.42029522]
[1747606672976,4.20742503,2376.8,2376.6,1.42029522]
[1747606673122,1.6233,2376.7,2376.6,1.42029522]
[1747606673452,1.90262317,2377.1,2376.6,1.42029522]
[1747606673650,15.19809959,2377.5,2376.7,1.5318]
[1747606673651,1.591,2377.5,2376.7,1.5318]
[1747606673871,1.591,2378.5,2377.4,5.73798506]
[1747606674049,0.48390022,2378.5,2377.5,29.54479851]
[1747606674353,11.54790022,2378.5,2377.5,18.72379851]
[1747606674653,11.54790022,2378.5,2377.7,0.55]
[1747606674871,4.20450723,2378.4,2377.6,4.75581537]
[1747606675033,4.68827054,2378.5,2377.8,0.55]
[1747606675238,0.48390022,2378.5,2377.9,1.55766619]
[1747606675423,0.48390022,2378.5,2377.9,10.821]
[1747606675624,11.12,2378.4,2377.5,18.72379851]
[1747606675825,4.20574504,2377.7,2377.6,10.821]
[1747606676071,4.2056027,2377.8,2377.6,10.821]
[1747606676353,4.2056027,2377.8,2376.9,11.679]
[1747606676354,4.20662064,2377.3,2377.2,10.821]
[1747606676552,11.43265467,2377.8,2376.8,10.821]
[1747606676553,4.20638326,2377.4,2376.8,10.821]
[1747606676765,4.20696269,2377.1,2376.8,10.821]
[1747606676968,4.20736495,2376.8,2376.7,11.142]
[1747606677469,4.20722011,2376.9,2376.7,11.142]
[1747606677682,11.137,2377.5,2376.7,11.142]
[1747606677683,4.20621834,2377.5,2376.7,12.04582717]
[1747606677828,4.20539131,2377.9,2376.8,11.142]
[1747606678138,4.20629037,2377.4,2376.8,11.142]
[1747606678329,4.20674956,2377.2,2376.6,11.142]
[1747606678659,0.32300588,2377.2,2376.4,12.7668]
[1747606678858,4.20755248,2376.7,2376.4,12.7668]
[1747606679062,16.85142525,2377.3,2376.4,12.7668]
[1747606679063,12.6449,2377.3,2376.4,12.7668]
[1747606679306,1.6412,2377.8,2376.6,0.55]
[1747606679564,1.6412,2378.8,2377.0,0.55]
[1747606679739,1.6412,2378.8,2376.9,1.5409]
[1747606679740,0.58448618,2378.7,2377.8,1.5409]
[1747606680266,4.20521446,2378.0,2377.9,11.142]
[1747606680482,1.25503552,2378.7,2377.9,11.142]
[1747606680774,11.48933189,2378.6,2377.9,11.142]
[1747606681066,0.34833189,2378.5,2378.0,18.157]
[1747606681270,0.34833189,2378.5,2378.2,0.55]
[1747606681636,0.34833189,2378.5,2378.4,4.75450723]
[1747606682057,0.34833189,2378.5,2378.4,6.39660723]
[1747606682231,0.34833189,2378.5,2378.4,1.6421]
[1747606682432,4.2036978,2378.9,2378.4,1.6421]
[1747606682647,4.20256356,2379.5,2378.5,11.145]
[1747606682846,4.20256356,2379.5,2378.4,3.33877727]
[1747606682847,4.20426995,2378.6,2378.4,1.6421]
[1747606683051,4.20426995,2378.6,2378.0,18.157]
[1747606683052,4.2041537,2378.6,2378.5,11.143]
[1747606683264,4.20492616,2378.2,2378.0,18.157]
[1747606683573,4.2041537,2378.6,2378.1,11.143]
[1747606683574,4.20454098,2378.4,2378.1,11.143]
[1747606683769,4.20470789,2378.3,2378.1,11.143]
[1747606684066,4.20478517,2378.3,2378.1,11.143]
[1747606684269,4.20486081,2378.2,2378.1,11.143]
[1747606684680,4.20376567,2378.9,2378.1,11.143]
[1747606684862,4.20373392,2378.9,2378.2,0.55]
[1747606685186,4.20407745,2378.7,2378.3,11.143]
[1747606685338,1.556,2379.4,2378.3,11.143]
[1747606685544,1.556,2379.4,2377.7,15.29467278]
[1747606685545,4.20344682,2379.0,2377.7,11.143]
[1747606685743,4.20397641,2378.8,2377.7,11.143]
[1747606686048,4.20543171,2377.9,2377.7,11.143]
[1747606686454,4.20448418,2378.5,2377.7,15.34871298]
[1747606686680,4.20414763,2378.7,2378.0,4.20508946]
[1747606686864,4.20431347,2378.6,2378.1,11.143]
[1747606687069,4.20402857,2378.7,2378.2,18.155]
[1747606687262,1.556,2379.1,2378.2,18.155]
[1747606687462,4.20377287,2378.9,2378.3,4.20464507]
[1747606687687,1.556,2379.1,2378.2,18.155]
[1747606687688,4.20389029,2378.8,2378.2,18.155]
[1747606687989,0.32101032,2379.2,2378.4,4.20450252]
[1747606688297,1.5194,2379.5,2378.5,0.42045025]
[1747606688452,4.20328531,2379.1,2378.6,4.20406556]
[1747606688651,4.20328531,2379.1,2378.7,11.143]
[1747606688962,15.29822667,2379.7,2378.7,11.143]
[1747606688963,1.5194,2379.9,2378.9,1.64]
[1747606689281,4.2018894,2379.9,2379.4,4.20271819]
[1747606689479,4.20162723,2380.1,2379.5,29.297]
[1747606689681,0.17148725,2380.0,2379.6,0.55]
[1747606689856,0.17148725,2380.0,2379.9,4.20185722]
[1747606690058,0.48390022,2380.3,2380.2,4.20132761]
[1747606690386,0.48390022,2380.3,2380.2,15.89432761]
[1747606690584,0.48390022,2380.3,2379.7,1.64]
[1747606690891,0.48390022,2380.3,2380.2,4.20132761]
[1747606691092,0.48390022,2380.3,2380.2,0.55]
[1747606691661,0.48390022,2380.3,2380.2,4.75132761]
[1747606692402,0.48390022,2380.3,2380.0,11.053]
[1747606692567,4.2008241,2380.5,2380.0,15.25466495]
[1747606692897,4.20028234,2380.8,2380.1,0.55]
[1747606693097,4.19890428,2381.6,2380.5,0.55]
[1747606693299,4.19921054,2381.4,2380.6,29.289]
[1747606693506,4.20006984,2381.0,2380.6,29.289]
[1747606693703,4.20015072,2380.9,2380.6,29.289]
[1747606693900,4.19984252,2381.1,2380.7,0.35064586]
[1747606694208,4.19921054,2381.4,2380.7,0.35064586]
[1747606694412,4.19999845,2381.0,2380.7,0.35064586]
[1747606694617,4.19979235,2381.1,2380.7,0.35064586]
[1747606694823,4.19853146,2381.8,2380.7,0.35064586]
[1747606695125,4.19915941,2381.5,2380.9,4.19994731]
[1747606695284,0.48390022,2382.3,2381.2,4.74956268]
[1747606695469,4.19872799,2381.7,2381.3,11.137]
[1747606695666,0.80430324,2382.3,2381.3,11.137]
[1747606695902,0.53637889,2382.3,2381.3,11.137]
[1747606696092,4.19861392,2381.8,2381.3,11.137]
[1747606696709,4.19863965,2381.8,2381.3,11.137]
[1747606696904,4.19903422,2381.5,2381.4,0.35054279]
[1747606697119,4.25152086,2381.5,2381.4,0.35054279]
[1747606697323,16.82312086,2381.5,2381.4,0.04381785]
[1747606697487,4.20026881,2380.8,2380.7,11.137]
[1747606697817,4.20012019,2380.9,2380.7,11.137]
[1747606697983,1.87140604,2382.3,2381.4,4.19918779]
[1747606698184,4.19795986,2382.2,2381.5,29.276]
[1747606698383,4.19862575,2381.8,2381.6,11.135]
[1747606698623,5.75331202,2382.3,2381.6,15.33380645]
[1747606698788,4.19835433,2381.9,2381.6,12.7581]
[1747606698987,4.19810103,2382.1,2381.6,12.7581]
[1747606699285,4.19786893,2382.2,2381.6,16.95685521]
[1747606699491,4.19824105,2382.0,2381.6,12.7581]
[1747606699717,4.19842101,2381.9,2381.6,12.7581]
[1747606700217,4.19868161,2381.7,2381.5,18.05696583]
[1747606700428,4.19854021,2381.8,2381.7,11.135]
[1747606700919,4.19885791,2381.6,2381.5,18.05696583]
[1747606701324,4.19938688,2381.3,2381.2,11.133]
[1747606701507,4.20020842,2380.9,2380.7,18.137]
[1747606701722,4.20020842,2380.9,2380.8,11.133]
[1747606701927,15.20385791,2381.6,2380.8,11.133]
[1747606702228,4.2000924,2380.9,2380.8,11.133]
[1747606703086,4.20026881,2380.8,2380.7,18.137]
[1747606703291,4.20044524,2380.7,2380.6,11.133]
[1747606703692,4.20150413,2380.1,2380.0,29.27]
[1747606703999,4.20150413,2380.1,2380.0,11.133]
[1747606704198,4.20150413,2380.1,2379.3,18.137]
[1747606704199,4.20254976,2379.6,2379.3,18.137]
[1747606704399,4.20256356,2379.5,2379.4,11.48383744]
[1747606704606,4.20256356,2379.5,2379.4,0.35083744]
[1747606705721,4.20083045,2380.5,2379.4,0.35083744]
[1747606705906,4.20024616,2380.9,2380.0,4.2016131]
[1747606705907,15.15255507,2380.7,2380.0,4.2016131]
[1747606706111,4.20055507,2380.7,2380.1,15.33445449]
[1747606706328,4.19958594,2381.2,2380.4,4.2008208]
[1747606706531,4.19956324,2381.2,2380.5,4.20067092]
[1747606706703,4.19988102,2381.1,2380.5,4.20067092]
[1747606706899,4.19961768,2381.2,2380.6,4.20060035]
[1747606707108,4.19961768,2381.2,2380.2,19.7087]
[1747606707109,2.08637591,2381.2,2380.2,19.7087]
[1747606707303,4.25224277,2381.1,2380.3,10.945]
[1747606707637,4.20069312,2380.6,2380.3,10.945]
[1747606707837,2.08637591,2381.2,2380.3,10.945]
[1747606708030,4.20054077,2380.7,2380.2,19.7087]
[1747606708335,4.20059922,2380.7,2380.4,10.945]
[1747606708534,4.20033093,2380.8,2380.4,10.945]
[1747606709034,0.31378315,2381.3,2380.4,15.14587561]
[1747606709235,1.5147,2381.4,2380.5,0.55]
[1747606709435,4.19983447,2381.1,2380.5,4.75074644]
[1747606709940,4.20000543,2381.0,2380.5,0.55]
[1747606710440,16.67593002,2381.4,2380.6,10.945]
[1747606710441,4.20055371,2380.7,2380.6,10.945]
[1747606710741,4.20044524,2380.7,2380.6,10.945]
[1747606710908,4.19998267,2381.0,2380.6,10.945]
[1747606711236,6.06,2381.6,2380.6,12.45959232]
[1747606711442,4.19919557,2381.5,2380.9,4.19998589]
[1747606711616,4.19874181,2381.7,2380.9,5.85438589]
[1747606711936,4.19951217,2381.3,2381.0,10.945]
[1747606712359,4.19973961,2381.1,2381.0,10.945]
[1747606713554,4.19909157,2381.5,2381.0,10.944]
[1747606713755,4.19952877,2381.3,2381.0,10.944]
[1747606713973,4.19954555,2381.3,2381.0,10.944]
[1747606714135,4.20031146,2380.8,2380.6,1.6544]
[1747606714335,4.20031146,2380.8,2380.7,10.944]
[1747606714722,4.20016595,2380.9,2380.7,10.944]
[1747606715164,4.2000924,2380.9,2380.8,10.944]
[1747606716034,10.25918045,2381.5,2380.8,10.944]
[1747606716358,4.19976637,2381.1,2380.8,10.944]
[1747606716567,4.19965344,2381.2,2380.8,10.944]
[1747606716568,4.19964409,2381.2,2380.8,10.944]
[1747606716723,4.19906928,2381.5,2380.9,1.5543]
[1747606716927,4.19892232,2381.6,2381.1,4.19962045]
[1747606717459,4.19949225,2381.3,2381.1,18.137]
[1747606717667,4.19956324,2381.2,2381.1,18.137]
[1747606718227,0.3095263,2382.2,2381.2,1.6476]
[1747606718460,4.19921054,2381.4,2381.3,10.944]
[1747606718659,1.5056,2381.8,2381.3,10.944]
[1747606718863,1.5056,2381.8,2381.1,18.137]
[1747606719046,4.19952501,2381.3,2381.1,29.081]
[1747606719239,10.845,2381.6,2381.1,29.081]
[1747606719435,4.19877542,2381.7,2381.1,29.081]
[1747606719671,10.832,2381.8,2381.1,29.081]
[1747606719672,1.6413,2382.1,2381.2,0.55]
[1747606719855,4.19850088,2381.9,2381.2,4.74948204]
[1747606720053,4.19797657,2382.1,2381.2,4.74948204]
[1747606720360,4.19868478,2381.7,2381.2,4.74948204]
[1747606720838,4.19896825,2381.6,2381.1,33.28069983]
[1747606721049,4.19877335,2381.7,2381.2,4.19951443]
[1747606721364,4.19921054,2381.4,2381.3,10.943]
[1747606721561,10.822,2381.9,2381.3,10.943]
[1747606721730,4.19921054,2381.4,2381.3,10.943]
[1747606722144,4.19956324,2381.2,2381.1,18.137]
[1747606722342,4.19956324,2381.2,2381.1,29.079]
[1747606722555,4.19930635,2381.4,2381.1,29.079]
[1747606722769,4.19929264,2381.4,2381.1,29.079]
[1747606722961,4.19956324,2381.2,2381.1,29.079]
[1747606723379,10.822,2381.5,2381.1,29.079]
[1747606723686,4.19917001,2381.5,2381.1,29.079]
[1747606724185,10.25859393,2381.8,2381.3,4.19928954]
[1747606724500,1.02585939,2381.8,2381.1,18.137]
[1747606724652,4.19938688,2381.3,2381.2,10.942]
[1747606726898,4.19956324,2381.2,2381.1,18.137]
[1747606727186,4.19956324,2381.2,2379.0,25.95029522]
[1747606727187,4.20046558,2380.7,2380.6,10.942]
[1747606727484,4.20115111,2380.3,2380.2,29.076]
[1747606728354,4.20150413,2380.1,2380.0,10.943]
[1747606728555,1.5979,2381.1,2379.9,1.6518]
[1747606728789,4.20018099,2380.9,2380.4,4.20094931]
[1747606728993,5.79712804,2381.4,2380.7,4.20044524]
[1747606729285,0.48390022,2381.5,2380.8,10.943]
[1747606729489,0.48390022,2381.5,2381.0,4.19983004]
[1747606729885,0.48390022,2381.5,2381.1,4.19973715]
[1747606730083,4.1994776,2381.3,2381.2,10.943]
[1747606730996,4.19927916,2381.4,2381.2,10.943]
[1747606731194,4.68306159,2381.5,2381.2,10.943]
[1747606731394,4.68297024,2381.5,2381.2,10.943]
[1747606731618,4.19936315,2381.4,2381.2,10.943]
[1747606732214,4.19938688,2381.3,2381.2,10.943]
[1747606732583,4.19929996,2381.4,2381.2,10.943]
[1747606733305,4.19851744,2381.8,2381.3,4.1992495]
[1747606733505,4.19815281,2382.0,2381.4,4.19911287]
[1747606733715,4.19845425,2381.9,2381.2,17.87931443]
[1747606733894,15.01888521,2382.2,2381.7,4.19865131]
[1747606734097,4.19788521,2382.2,2381.8,10.943]
[1747606734406,4.19787514,2382.2,2381.8,12.4552]
[1747606734626,4.19786908,2382.2,2381.8,12.4552]
[1747606734827,4.19744795,2382.4,2381.8,10.943]
[1747606735123,4.19824195,2382.0,2381.8,10.943]
[1747606736128,4.19804951,2382.1,2381.8,10.943]
[1747606736422,4.1980141,2382.1,2381.8,10.943]
[1747606736641,4.19791516,2382.2,2381.8,10.943]
[1747606736815,1.92164853,2382.2,2381.6,18.135]
[1747606737034,4.19868161,2381.7,2381.6,18.135]
[1747606737614,4.19829537,2382.0,2381.6,18.135]
[1747606737811,1.6421,2382.6,2381.7,0.55]
[1747606738063,0.3187518,2382.9,2382.0,1.5314]
[1747606738243,2.49216917,2383.1,2382.2,0.55]
[1747606738549,4.19665273,2382.9,2382.3,10.819]
[1747606738725,4.19737868,2382.5,2382.3,10.819]
[1747606738909,0.30786129,2382.9,2382.0,1.5314]
[1747606739115,4.19753573,2382.4,2382.1,10.819]
[1747606739309,1.5946,2383.1,2382.1,12.47387071]
[1747606739526,4.1972587,2382.6,2382.1,12.47387071]
[1747606739731,4.19731757,2382.5,2382.1,12.47387071]
[1747606740139,4.19756762,2382.4,2382.2,10.818]
[1747606740343,4.19675001,2382.8,2382.2,10.818]
[1747606740515,4.19760016,2382.4,2382.2,10.818]
[1747606740726,0.31053671,2382.9,2382.2,10.818]
[1747606740727,4.1973775,2382.5,2382.2,10.818]
[1747606741756,4.19729113,2382.5,2382.3,10.818]
[1747606741952,4.1963911,2383.0,2382.3,15.01545826]
[1747606742119,10.817,2383.3,2382.4,5.69886504]
[1747606742324,4.19615002,2383.2,2382.6,5.75609479]
[1747606742520,4.19615002,2383.2,2382.6,5.75613063]
[1747606742724,6.06,2383.4,2382.6,1.5591]
[1747606742970,4.1970956,2382.6,2382.5,18.131]
[1747606743148,4.19676296,2382.8,2382.5,28.948]
[1747606743447,4.1970956,2382.6,2382.5,28.948]
[1747606743655,4.1970956,2382.6,2382.5,18.131]
[1747606744015,4.19660159,2382.9,2382.5,28.948]
[1747606744254,4.1963911,2383.0,2382.5,31.8428]
[1747606744416,6.06,2383.2,2382.5,31.8428]
[1747606744745,4.19621501,2383.1,2382.5,36.04006891]
[1747606744943,4.19660246,2382.9,2382.5,31.8428]
[1747606745148,4.19678762,2382.8,2382.5,31.8428]
[1747606745367,6.06,2383.2,2382.6,10.817]
[1747606745961,4.19683521,2382.8,2382.7,10.816]
[1747606746825,4.19633536,2383.1,2382.8,1.586]
[1747606747023,4.19613686,2383.2,2382.8,1.586]
[1747606747243,4.19560673,2383.5,2383.0,4.1963651]
[1747606747446,0.32206773,2383.6,2383.1,0.41963651]
[1747606747649,0.32206773,2383.6,2383.3,1.658]
[1747606747851,0.32206773,2383.6,2383.4,18.127]
[1747606748226,4.19490832,2383.9,2383.4,22.32267231]
[1747606748421,0.48390022,2384.2,2383.4,18.127]
[1747606748626,4.19506603,2383.8,2383.4,18.127]
[1747606748823,4.19506603,2383.8,2383.4,22.08128772]
[1747606749247,0.48390022,2384.2,2383.5,0.55]
[1747606749454,7.70245609,2384.5,2383.5,0.55]
[1747606749654,4.19392719,2384.4,2383.7,0.55]
[1747606749851,4.1941873,2384.3,2383.9,0.55]
[1747606750056,2.00826895,2384.5,2384.0,1.55588859]
[1747606750263,2.00826895,2384.5,2384.1,0.55]
[1747606750440,2.00826895,2384.5,2384.2,1.5145]
[1747606750646,4.19410309,2384.3,2384.2,1.5145]
[1747606750932,2.00826895,2384.5,2384.2,12.3285]
[1747606751148,2.00826895,2384.5,2384.3,0.55]
[1747606751349,6.20204481,2384.5,2384.3,0.55]
[1747606751550,2.00826895,2384.5,2384.3,0.55]
[1747606751843,2.00826895,2384.5,2384.2,13.71693886]
[1747606752045,2.00826895,2384.5,2384.3,18.673]
[1747606752266,4.19322991,2384.8,2384.4,3.23899389]
[1747606752447,4.19310152,2384.9,2384.5,0.55]
[1747606752848,11.12420577,2385.2,2384.3,18.123]
[1747606753083,4.19375131,2384.5,2384.4,10.811]
[1747606753451,4.19382477,2384.5,2384.4,10.811]
[1747606753652,4.1936308,2384.6,2384.4,10.811]
[1747606753847,11.12420577,2385.2,2384.4,13.85585]
[1747606753848,4.19356814,2384.7,2384.4,13.85585]
[1747606754070,4.19359164,2384.6,2384.3,18.123]
[1747606754275,4.19391433,2384.5,2384.4,10.811]
[1747606754483,8.31620577,2385.2,2384.4,10.811]
[1747606754655,10.804,2385.0,2384.4,10.811]
[1747606754849,4.19288238,2385.0,2384.4,10.811]
[1747606755082,4.19304792,2384.9,2384.3,18.123]
[1747606755281,4.19375131,2384.5,2384.4,10.81]
[1747606755585,4.19365872,2384.6,2384.4,10.81]
[1747606755778,4.19355598,2384.7,2384.4,10.81]
[1747606756085,4.1934191,2384.7,2384.4,10.81]
[1747606756252,4.19269632,2385.1,2384.6,4.19349423]
[1747606756458,4.19293129,2385.0,2384.5,4.74366654]
[1747606757051,3.9319309,2385.7,2384.9,0.55]
[1747606757289,3.9319309,2385.7,2385.0,10.81]
[1747606757485,2.00826895,2385.7,2385.1,0.55]
[1747606757753,2.00826895,2385.7,2385.3,0.55]
[1747606757966,2.00826895,2385.7,2385.5,0.55]
[1747606758168,2.00826895,2385.7,2385.6,11.358]
[1747606758368,4.19109047,2386.1,2385.6,10.808]
[1747606758670,4.19098622,2386.1,2385.7,10.808]
[1747606758995,4.19114875,2386.0,2385.7,10.808]
[1747606759154,1.6106,2386.5,2385.7,11.8888]
[1747606759355,4.1908787,2386.2,2385.7,11.8888]
[1747606759581,4.19103718,2386.1,2385.7,11.8888]
[1747606759790,4.19146617,2385.8,2385.2,19.7074]
[1747606760096,4.19146617,2385.8,2385.3,15.55029979]
[1747606760292,1.6106,2386.5,2385.5,0.55]
[1747606760590,4.19112088,2386.0,2385.5,0.55]
[1747606760777,4.19103046,2386.1,2385.7,0.55]
[1747606760983,1.6106,2386.5,2385.8,1.5649]
[1747606761182,4.19034866,2386.5,2386.1,0.55]
[1747606761371,1.6356,2386.8,2386.2,10.805]
[1747606761690,4.19000974,2386.7,2386.2,10.805]
[1747606761889,4.19031582,2386.5,2386.2,10.805]
[1747606762093,2.00826895,2387.1,2386.3,1.6663]
[1747606762400,4.19034192,2386.5,2386.4,10.805]
[1747606762598,4.1895582,2386.9,2386.4,10.805]
[1747606762895,4.18991759,2386.7,2386.4,10.805]
[1747606763096,0.48390022,2388.4,2386.9,0.55]
[1747606763294,4.1887505,2387.4,2387.0,28.914]
[1747606763593,4.18877601,2387.4,2387.1,0.55]
[1747606764092,4.18918352,2387.1,2387.0,18.109]
[1747606764296,4.18918352,2387.1,2387.0,28.911]
[1747606765018,5.0269911,2387.1,2387.0,28.911]
[1747606765164,4.18918352,2387.1,2387.0,28.911]
[1747606765663,4.18953454,2386.9,2386.8,10.802]
[1747606766000,4.18971007,2386.8,2386.7,10.802]
[1747606766193,1.5327,2387.3,2386.7,10.802]
[1747606766194,5.72155557,2387.3,2386.7,10.802]
[1747606766398,4.18864001,2387.5,2386.9,0.55]
[1747606766576,4.18812229,2387.8,2387.3,0.55]
[1747606766771,1.5327,2388.1,2387.0,5.79995902]
[1747606766772,1.5327,2387.9,2387.0,10.8]
[1747606767099,1.5327,2388.3,2387.3,0.55]
[1747606767300,1.5327,2388.6,2387.5,0.55]
[1747606767505,1.5327,2388.6,2387.7,0.55]
[1747606767506,4.18655279,2388.6,2387.7,0.55]
[1747606767668,4.18779252,2387.9,2387.6,21.00516]
[1747606767864,4.18813083,2387.7,2387.6,19.7106]
[1747606768088,1.532,2388.2,2387.6,18.1]
[1747606768287,4.18813083,2387.7,2387.6,18.1]
[1747606768488,4.18813083,2387.7,2387.6,28.885]
[1747606768696,4.18813083,2387.7,2387.6,18.1]
[1747606769977,4.18802938,2387.8,2387.6,18.1]
[1747606770176,4.18813083,2387.7,2387.6,18.1]
[1747606770474,4.18777021,2388.0,2387.6,28.883]
[1747606770675,5.71928944,2388.2,2387.6,28.883]
[1747606771000,10.783,2388.4,2387.7,1.5598]
[1747606771307,10.783,2388.4,2387.8,0.55]
[1747606771474,10.783,2388.4,2387.7,1.5598]
[1747606771475,4.18790228,2387.9,2387.7,1.5598]
[1747606771679,4.18790228,2387.9,2387.8,10.783]
[1747606771879,4.18752774,2388.1,2387.8,10.783]
[1747606772197,4.1873164,2388.2,2387.8,10.783]
[1747606772403,4.1873164,2388.2,2387.9,0.55]
[1747606772596,5.77237682,2388.6,2387.9,0.55]
[1747606772900,4.18741345,2388.2,2387.9,0.55]
[1747606773100,0.052339,2388.5,2387.8,3.33311]
[1747606773285,4.18760469,2388.0,2387.9,10.78]
[1747606774506,1.5858,2388.6,2388.0,0.55]
[1747606774689,16.54837881,2388.6,2388.0,0.55]
[1747606775085,4.18728951,2388.2,2388.0,0.55]
[1747606775410,12.18602479,2389.0,2388.0,0.55]
[1747606775411,4.18597928,2389.0,2388.4,4.18679676]
[1747606775566,4.1859439,2389.0,2388.5,11.96737968]
[1747606775901,1.6161,2389.2,2388.5,11.96737968]
[1747606775902,4.18637752,2388.7,2388.6,10.778]
[1747606776075,4.18637752,2388.7,2388.5,18.73037968]
[1747606776402,4.18637752,2388.7,2388.6,10.778]
[1747606776698,4.18637752,2388.7,2388.5,18.73037968]
[1747606776699,4.18645484,2388.7,2388.5,18.73037968]
[1747606776903,4.18642937,2388.7,2388.6,10.778]
[1747606777302,4.18655279,2388.6,2388.5,18.093]
[1747606777482,4.18638007,2388.7,2388.5,18.093]
[1747606777685,4.18629118,2388.8,2388.5,18.093]
[1747606777902,1.6161,2389.2,2388.5,18.093]
[1747606778104,1.6161,2389.2,2388.5,20.57887601]
[1747606778413,4.18609077,2388.9,2388.5,20.57887601]
[1747606778570,4.18576371,2389.1,2388.6,6.33784547]
[1747606778767,4.18586456,2389.0,2388.6,2.1513]
[1747606779012,4.18603335,2388.9,2388.7,2.69168349]
[1747606779213,4.18620227,2388.8,2388.7,2.69168349]
[1747606779517,1.5264,2389.8,2388.8,4.73616132]
[1747606779724,4.18529503,2389.4,2389.0,0.55]
[1747606779931,1.8476792,2390.2,2389.2,0.55]
[1747606780230,1.8476792,2390.2,2389.1,5.77367661]
[1747606780231,4.18437172,2389.9,2389.4,0.55]
[1747606780435,1.5264,2390.2,2389.5,18.086]
[1747606780436,5.71028813,2390.2,2389.5,18.086]
[1747606780635,4.1848008,2389.6,2389.5,28.862]
[1747606780786,5.71018263,2390.2,2389.5,28.862]